[Event "10th Norway Chess Blitz 2022"]
[Site "Stavanger"]
[Date "2022.05.30"]
[Round "4.4"]
[White "Radjabov, Teimour"]
[Black "Anand, Viswanathan"]
[Result "1/2-1/2"]
[ECO "D38"]
[WhiteElo "2753"]
[BlackElo "2751"]
[Annotator "TA"]
[PlyCount "69"]
[EventDate "2022.05.30"]
[EventType "tourn"]
[EventCountry "NOR"]
[SourceTitle "playchess.com"]
[Source "ChessBase"]
[SourceQuality "1"]
[TimeControl "180+2"]

{[%evp 21,69,0,5,0,0,0,0,-4,-4,-7,0,-4,10,6,8,5,16,11,11,11,27,7,10,0,6,6,30,18,66,55,51,6,4,16,20,10,7,0,0,0,0,0,0,0,0,0,0,0,0,0]} 1. d4 {[%emt 0:00:01]} Nf6 {[%emt 0:00:01]} 2. c4 {[%emt 0:00:01]} e6 {[%emt 0:00:01]} 3. Nf3 {[%emt 0:00:01]} d5 {[%emt 0:00:01]} 4. Nc3 {[%emt 0:00:00]} Bb4 {[%emt 0:00:01]} 5. Bg5 {[%emt 0:00:23]} h6 {[%emt 0:00:01]} 6. Bxf6 {[%emt 0:00:09]} Qxf6 {[%emt 0:00:02]} 7. e3 {[%emt 0:00:09]} O-O {[%emt 0:00:02]} 8. cxd5 {[%emt 0:00:07]} exd5 {[%emt 0:00:01]} 9. Qb3 {[%emt 0:00:01]} Qd6 {[%emt 0:00:20]} 10. Bd3 {[%emt 0:00:03]} c6 {[%emt 0:00:06]} 11. O-O {[%emt 0:00:03]} Nd7 {[%emt 0:00:02]} 12. Rac1 {[%emt 0:00:44] D38: Queen's Gambit Declined: Ragozin Defence (4 Nf3 Bb4).} Ba5 {[%emt 0:00:07] [#]} 13. e4 $146 {[%emt 0:00:04][%cal Re4d5]} ({Predecessor:} 13. Rfe1 Rb8 14. Qa4 Bb6 15. b4 a6 16. Qb3 Nf6 17. h3 g5 18. Ne5 Nd7 19. Na4 {0-1 (52) Rekkedal,F-Hammerstad,A (2165) Norway 2002}) 13... Bxc3 {[%emt 0:00:12]} 14. bxc3 {[%emt 0:00:01]} dxe4 {[%emt 0:00:01]} 15. Bxe4 {[%emt 0:00:01]} Nf6 {[%emt 0:00:05]} 16. Bd3 {[%emt 0:00:06]} b5 {[%emt 0:00:06]} 17. c4 {[%emt 0:00:16]} Be6 {[%emt 0:00:12]} 18. Qc2 {[%emt 0:00:06]} bxc4 {[%emt 0:00:02]} 19. Bxc4 {[%emt 0:00:01]} Rfe8 {[%emt 0:00:28]} 20. Rfe1 {[%emt 0:00:03]} Bxc4 {[%emt 0:00:01]} 21. Qxc4 {[%emt 0:00:01]} Rxe1+ {[%emt 0:00:01]} 22. Rxe1 {[%emt 0:00:00]} Rc8 {[%emt 0:00:06]} 23. Ne5 {[%emt 0:00:09]} Qd5 {[%emt 0:00:07]} 24. Rc1 {[%emt 0:00:05]} Qxc4 {[%emt 0:00:05]} (24... Rb8 $11 {is superior.}) 25. Rxc4 $11 {[%emt 0:00:02][%mdl 4096] Endgame KRN-KRN} Rb8 {[%emt 0:00:02] [#] ( -> ...Rb1+)} 26. h3 {[%emt 0:00:53]} Rb1+ {[%emt 0:00:02] The position is equal.} 27. Kh2 {[%emt 0:00:00]} Rb2 {[%emt 0:00:01][%csl LRa2,LRf2]} 28. Rxc6 {[%emt 0:00:05]} Rxa2 {[%emt 0:00:03]} 29. Rc8+ {[%emt 0:00:03][%cal Bc6c8,Bc8a8,Ba8a7][%mdl 32]} Kh7 {[%emt 0:00:01]} 30. Nxf7 {[%emt 0:00:03]} Rxf2 {[%emt 0:00:04][%cal Ba2f2,Bf2f7,Bf7d7,Bd7d4][%mdl 32]} 31. Ra8 {[%emt 0:00:06]} Ng4+ {[%emt 0:00:02]} 32. hxg4 {[#] Black must now prevent Rh8+.} Rxf7 {[%emt 0:00:02]} 33. Kg3 {[%emt 0:00:07]} Rd7 {[%emt 0:00:01]} 34. Kf3 {[%emt 0:00:10]} Rxd4 {[%emt 0:00:13]} 35. Rxa7 {[%emt 0:00:01] Weighted Error Value: White=0.05 (flawless) /Black=0.05 (flawless)} 1/2-1/2

[Event "10th Norway Chess Blitz 2022"]
[Site "Stavanger"]
[Date "2022.05.30"]
[Round "4.5"]
[White "Giri, Anish"]
[Black "Wang, Hao"]
[Result "1-0"]
[ECO "B31"]
[WhiteElo "2761"]
[BlackElo "2744"]
[Annotator "TA"]
[PlyCount "267"]
[EventDate "2022.05.30"]
[EventType "tourn"]
[EventCountry "NOR"]
[SourceTitle "playchess.com"]
[Source "ChessBase"]
[SourceQuality "1"]
[TimeControl "180+2"]

{[%evp 91,267,281,366,357,340,256,330,164,283,266,374,336,333,45,41,41,41,44,41,45,45,41,41,37,37,37,37,37,45,28,67,45,65,59,59,59,59,37,37,37,37,37,44,37,44,37,44,37,37,37,37,24,44,34,59,28,28,0,0,0,0,0,0,0,0,0,0,0,0,0,0,0,0,0,0,0,0,0,0,0,0,0,4,0,8,8,8,8,68,8,12,8,13,12,13,13,28,8,16,8,8,8,36,8,8,8,75,67,67,67,67,67,67,67,67,0,67,8,8,8,8,8,64,0,67,8,36,0,0,0,0,0,67,67,68,0,68,68,68,67,68,64,64,64,64,64,64,64,64,64,65,65,65,65,67,67,68,68,70,68,70,70,70,68,68,68,68,68,70,70,70,70,70,70,29993,29994,29998,29999]} 1. e4 {[%emt 0:00:00]} c5 {[%emt 0:00:02]} 2. Nf3 {[%emt 0:00:01]} Nc6 {[%emt 0:00:01]} 3. Bb5 {[%emt 0:00:01]} g6 {[%emt 0:00:01]} 4. O-O {[%emt 0:00:02]} Bg7 {[%emt 0:00:02]} 5. Re1 {[%emt 0:00:01]} e5 {[%emt 0:00:03]} 6. Bxc6 {[%emt 0:00:02]} dxc6 {[%emt 0:00:02]} 7. d3 {[%emt 0:00:03]} Qe7 {[%emt 0:00:02]} 8. a3 {[%emt 0:00:11]} Nf6 {[%emt 0:00:03]} 9. b4 {[%emt 0:00:01]} O-O {[%emt 0:00:02]} 10. bxc5 {[%emt 0:00:01]} Qxc5 {[%emt 0:00:02]} 11. a4 {[%emt 0:00:00]} Re8 {[%emt 0:00:03]} 12. Ba3 {[%emt 0:00:19]} Qa5 {[%emt 0:00:03]} 13. Nbd2 {[%emt 0:00:05]} Be6 {[%emt 0:00:03]} 14. Qb1 {[%emt 0:00:09]} Qc7 {[%emt 0:00:31]} 15. a5 {[%emt 0:00:04]} h6 {[%emt 0:00:10]} 16. Qb4 {[%emt 0:00:14]} Nd7 {[%emt 0:00:05]} 17. Reb1 {[%emt 0:00:14]} b6 {[%emt 0:00:05]} 18. axb6 {[%emt 0:00:25]} axb6 {[%emt 0:00:03]} 19. Bb2 {[%emt 0:00:01]} b5 {[%emt 0:00:30]} 20. Bc3 {[%emt 0:00:29]} Rxa1 {[%emt 0:00:39]} 21. Rxa1 {[%emt 0:00:02]} Rb8 {[%emt 0:00:04]} 22. Qb1 {[%emt 0:00:43]} c5 {[%emt 0:00:11]} 23. Nf1 {[%emt 0:00:01]} b4 {[%emt 0:00:10]} 24. Bb2 {[%emt 0:00:01]} c4 {[%emt 0:00:04]} 25. dxc4 {[%emt 0:00:01]} Qxc4 {[%emt 0:00:09]} 26. N3d2 {[%emt 0:00:03]} Qe2 {[%emt 0:00:10]} 27. Qd1 {[%emt 0:00:08]} Qxd1 {[%emt 0:00:03]} 28. Rxd1 {[%emt 0:00:01]} Nc5 {[%emt 0:00:01]} 29. Ra1 {[%emt 0:00:05]} Bd7 {[%emt 0:00:10]} 30. Ra5 {[%emt 0:00:09]} Bb5 {[%emt 0:00:15]} 31. c4 {[%emt 0:00:09]} bxc3 {[%emt 0:00:02]} 32. Bxc3 {[%emt 0:00:00]} Ne6 {[%emt 0:00:05]} 33. Ne3 {[%emt 0:00:03]} Nd4 {[%emt 0:00:02]} 34. Bxd4 {[%emt 0:00:07]} exd4 {[%emt 0:00:02]} 35. Nd5 {[%emt 0:00:00]} Bd7 {[%emt 0:00:04]} 36. Kf1 {[%emt 0:00:03]} Be6 {[%emt 0:00:02]} 37. Ke2 {[%emt 0:00:02]} Kh7 {[%emt 0:00:04]} 38. h3 {[%emt 0:00:01]} f5 {[%emt 0:00:02]} 39. f3 {[%emt 0:00:03]} fxe4 {[%emt 0:00:01]} 40. fxe4 {[%emt 0:00:00]} Rf8 {[%emt 0:00:03]} 41. Nf3 {[%emt 0:00:02]} Rc8 {[%emt 0:00:02]} 42. Kd3 {[%emt 0:00:02]} Rb8 {[%emt 0:00:02]} 43. Nxd4 {[%emt 0:00:02]} Bg8 {[%emt 0:00:03]} 44. Ra7 {[%emt 0:00:01]} Kh8 {[%emt 0:00:02]} 45. Nf4 {[%emt 0:00:02]} Rd8 {[%emt 0:00:02]} 46. Nxg6+ {[%emt 0:00:06]} Kh7 {[%emt 0:00:02]} 47. Ne5 {[%emt 0:00:02]} Kh8 {[%emt 0:00:02]} 48. Nef3 {[%emt 0:00:02]} Bh7 {[%emt 0:00:03]} 49. Re7 {[%emt 0:00:08]} (49. g4 $142) 49... Bf6 {[%emt 0:00:01]} (49... Bxd4 $142 50. Nxd4 Rg8) 50. Re6 $18 {[%emt 0:00:01]} Kg7 {[%emt 0:00:02]} (50... Bxd4 {is a better defense.} 51. Nxd4 Rg8 52. Rxh6 Rxg2) 51. Ke3 $18 {[%emt 0:00:01]} Kf7 {[%emt 0:00:02]} 52. Ra6 $2 {[%emt 0:00:01]} (52. e5 $18 Bg7 53. g4) 52... Re8 $14 {[%emt 0:00:01]} 53. Ra7+ {[%emt 0:00:02]} Kg8 $1 {[%emt 0:00:01]} 54. e5 {[%emt 0:00:04]} Bxe5 {[%emt 0:00:01]} 55. Nxe5 {[%emt 0:00:01]} Rxe5+ {[%emt 0:00:02]} 56. Kf2 {[%emt 0:00:01]} Be4 {[%emt 0:00:02]} 57. Rc7 {[%emt 0:00:07]} Rd5 {[%emt 0:00:02]} 58. Rc4 {[%emt 0:00:03]} Bd3 {[%emt 0:00:03]} 59. Rb4 {[%emt 0:00:00]} Bg6 {[%emt 0:00:02]} 60. g3 {[%emt 0:00:02]} Rd7 {[%emt 0:00:02]} 61. Ne6 {[%emt 0:00:03]} Kf7 {[%emt 0:00:01]} 62. Nf4 {[%emt 0:00:00]} Kg7 {[%emt 0:00:02]} 63. Rb6 {[%emt 0:00:02]} Bf7 {[%emt 0:00:01]} 64. Ke3 {[%emt 0:00:01]} Re7+ {[%emt 0:00:02]} 65. Kf3 {[%emt 0:00:00]} Ra7 {[%emt 0:00:01]} 66. Kg4 {[%emt 0:00:01]} Rc7 {[%emt 0:00:02]} 67. Ra6 {[%emt 0:00:01]} Rb7 {[%emt 0:00:01]} 68. Ra5 {[%emt 0:00:01]} Rc7 {[%emt 0:00:01]} 69. Kf5 {[%emt 0:00:01]} Rb7 {[%emt 0:00:02]} 70. Rc5 {[%emt 0:00:00]} Ra7 {[%emt 0:00:01]} 71. h4 {[%emt 0:00:02]} Re7 {[%emt 0:00:02]} 72. g4 {[%emt 0:00:02]} Ra7 {[%emt 0:00:02]} 73. Ke5 {[%emt 0:00:01]} Re7+ {[%emt 0:00:02]} 74. Kd6 {[%emt 0:00:01]} Re4 {[%emt 0:00:01]} 75. Rf5 {[%emt 0:00:02]} Kg8 {[%emt 0:00:02]} 76. Kc5 {[%emt 0:00:03]} Kg7 {[%emt 0:00:02]} 77. Kc6 {[%emt 0:00:01]} Kg8 {[%emt 0:00:01]} 78. Kd7 {[%emt 0:00:02]} Kg7 {[%emt 0:00:02]} 79. Kd6 {[%emt 0:00:00]} Kg8 {[%emt 0:00:01]} 80. g5 {[%emt 0:00:02]} hxg5 {[%emt 0:00:01]} 81. hxg5 {[%emt 0:00:01]} Kg7 {[%emt 0:00:02]} 82. Rf6 {[%emt 0:00:01]} Re1 {[%emt 0:00:03]} 83. Rf5 {[%emt 0:00:05]} Re4 {[%emt 0:00:02]} 84. Kc6 {[%emt 0:00:01]} Re1 {[%emt 0:00:03]} 85. Kc5 {[%emt 0:00:02]} Re4 {[%emt 0:00:03]} 86. Kd6 {[%emt 0:00:02]} Re1 {[%emt 0:00:02]} 87. Rc5 {[%emt 0:00:12]} Rd1+ {[%emt 0:00:02]} 88. Ke5 {[%emt 0:00:01]} Rd7 {[%emt 0:00:03]} 89. Kf5 {[%emt 0:00:01]} Ra7 {[%emt 0:00:02]} (89... Bg6+ $11 90. Kg4 (90. Nxg6 Rf7+ 91. Kg4 Kxg6 $11) 90... Ra7) 90. Re5 {[%emt 0:00:03]} (90. g6 $1 $14) 90... Ra6 {[%emt 0:00:02]} 91. Kg4 {[%emt 0:00:02]} Kg8 {[%emt 0:00:03]} 92. Re7 {[%emt 0:00:01]} Kf8 {[%emt 0:00:01]} 93. Rc7 {[%emt 0:00:01]} Rb6 {[%emt 0:00:02]} 94. Nd3 {[%emt 0:00:02]} Be6+ {[%emt 0:00:02]} 95. Kf4 {[%emt 0:00:01]} Bf7 {[%emt 0:00:03]} 96. Ne5 {[%emt 0:00:01]} Be8 {[%emt 0:00:02]} 97. Kf5 {[%emt 0:00:02]} (97. g6 $5) 97... Rb5 {[%emt 0:00:03]} 98. Ra7 {[%emt 0:00:04]} Rc5 {[%emt 0:00:01]} (98... Bh5 $11) 99. Ke6 {[%emt 0:00:03]} Rb5 {[%emt 0:00:02]} 100. Ra8 {[%emt 0:00:04]} Rb6+ {[%emt 0:00:02]} 101. Kf5 {[%emt 0:00:01]} Ke7 {[%emt 0:00:02]} 102. Ra7+ {[%emt 0:00:01]} Kf8 $1 {[%emt 0:00:02]} 103. Rc7 {[%emt 0:00:02]} (103. g6 $1 $14) 103... Ra6 {[%emt 0:00:02]} (103... Rb5 $11) 104. Rh7 {[%emt 0:00:08]} (104. g6 $14) 104... Kg8 $11 {[%emt 0:00:01]} 105. Re7 {[%emt 0:00:01]} Kf8 {[%emt 0:00:01]} 106. Rb7 {[%emt 0:00:01]} Rd6 {[%emt 0:00:04]} (106... Ra5 $11) 107. Ra7 {[%emt 0:00:01]} Rb6 {[%emt 0:00:02]} 108. Ke4 {[%emt 0:00:01]} (108. g6 $1 $14) 108... Rb1 {[%emt 0:00:05]} 109. Ng4 {[%emt 0:00:03]} Rb4+ {[%emt 0:00:03]} 110. Kf5 {[%emt 0:00:02]} Rb5+ {[%emt 0:00:01]} 111. Ne5 {[%emt 0:00:04]} (111. Kf4 $11) 111... Rb6 $14 {[%emt 0:00:02]} 112. g6 $1 {[%emt 0:00:03]} Rb1 {[%emt 0:00:04]} 113. Ng4 {[%emt 0:00:04]} ({Better is} 113. Ra8 $14) 113... Bxg6+ {[%emt 0:00:02]} (113... Rb5+ $1 $11 114. Ne5 Bxg6+ 115. Kxg6 Rxe5) 114. Kxg6 $14 {[%emt 0:00:01]} Ke8 {[%emt 0:00:03]} 115. Ne5 {[%emt 0:00:02]} Rf1 {[%emt 0:00:02]} 116. Rb7 {[%emt 0:00:01]} Kd8 {[%emt 0:00:02]} 117. Kg5 {[%emt 0:00:02]} Kc8 {[%emt 0:00:01]} 118. Rh7 {[%emt 0:00:02]} Kd8 {[%emt 0:00:03]} 119. Ng6 {[%emt 0:00:01]} Kc8 {[%emt 0:00:02]} 120. Nf4 {[%emt 0:00:01]} Rd1 {[%emt 0:00:03]} 121. Kf5 {[%emt 0:00:00]} Rd7 {[%emt 0:00:01]} 122. Rh6 {[%emt 0:00:01]} Kc7 {[%emt 0:00:03]} 123. Ke5 {[%emt 0:00:01]} Kb7 {[%emt 0:00:04]} 124. Nd5 {[%emt 0:00:01]} Rg7 {[%emt 0:00:02]} 125. Rb6+ {[%emt 0:00:01]} Ka7 {[%emt 0:00:02]} 126. Rb1 {[%emt 0:00:01]} Rg6 {[%emt 0:00:02]} 127. Kd4 {[%emt 0:00:02]} Rc6 {[%emt 0:00:02]} 128. Rb2 {[%emt 0:00:01]} Rc8 {[%emt 0:00:01]} 129. Ke5 {[%emt 0:00:01]} Rc6 {[%emt 0:00:01]} 130. Rb3 {[%emt 0:00:02]} Rc4 {[%emt 0:00:01]} 131. Kd6 {[%emt 0:00:01]} Rc1 {[%emt 0:00:01]} 132. Nb4 {[%emt 0:00:02]} Rd1+ $2 {[%emt 0:00:02][%mdl 8192] [#]} (132... Rh1 $14) 133. Kc7 $1 {[%emt 0:00:01]} Ra1 {[%emt 0:00:03]} 134. Nc6+ {[%emt 0:00:01]} 1-0

[Event "10th Norway Chess Blitz 2022"]
[Site "Stavanger"]
[Date "2022.05.30"]
[Round "5.1"]
[White "Wang, Hao"]
[Black "Carlsen, Magnus"]
[Result "0-1"]
[ECO "D45"]
[WhiteElo "2744"]
[BlackElo "2864"]
[Annotator "TA"]
[PlyCount "94"]
[EventDate "2022.05.30"]
[EventType "tourn"]
[EventCountry "NOR"]
[SourceTitle "playchess.com"]
[Source "ChessBase"]
[SourceQuality "1"]
[TimeControl "180+2"]

{[%evp 13,94,13,10,12,18,0,0,0,0,-5,0,0,3,0,0,0,0,-7,0,-12,-10,-10,-11,-11,-14,-14,-12,-10,-10,-14,-20,-22,-15,-13,-37,-47,-47,-46,-39,-48,-41,-46,-46,-57,-62,-57,-57,-64,-64,-64,-38,-64,-65,-65,-54,-54,-54,-157,-156,-147,-133,-132,-147,-1604,-1467,-2125,-1037,-2191,-2085,-2227,-2253,-2255,-2222,-2103,-2116,-1916,-1918,-1760,-1739,-1409,-1541,-1269,-1054]} 1. d4 {[%emt 0:00:02]} d5 {[%emt 0:00:02]} 2. c4 {[%emt 0:00:01]} c6 {[%emt 0:00:01]} 3. Nf3 {[%emt 0:00:02]} Nf6 {[%emt 0:00:02]} 4. Nc3 {[%emt 0:00:03]} e6 {[%emt 0:00:02]} 5. e3 {[%emt 0:00:01]} Nbd7 {[%emt 0:00:02]} 6. Qc2 {[%emt 0:00:02]} b6 {[%emt 0:00:01]} 7. Bd3 {[%emt 0:00:06]} Bb7 {[%emt 0:00:03]} 8. b3 {[%emt 0:00:04] D45: Semi-Slav: 5 e3.} Be7 {[%emt 0:01:05]} 9. cxd5 {[%emt 0:00:12]} cxd5 {[%emt 0:00:08]} 10. Bb2 {[%emt 0:00:05] The position is equal.} Rc8 {[%emt 0:00:04][%cal Of6e4]} 11. O-O {[%emt 0:00:05]} O-O {[%emt 0:00:15][%cal Of6e4]} 12. Rac1 {[%emt 0:00:08]} a6 {[%emt 0:00:07]} 13. Qe2 {[%emt 0:00:14]} b5 {[%emt 0:00:05] [#]} 14. a4 $146 {[%emt 0:00:07]} ({Predecessor:} 14. Ne5 Nxe5 15. dxe5 Ne4 16. Rfd1 Rc7 17. Bb1 Qb8 18. Nxe4 dxe4 19. Rc2 Rfc8 20. Rdc1 Rxc2 21. Rxc2 Rc6 22. Rxc6 Bxc6 23. Qc2 Qb7 24. h3 {½-½ (23) Warneke,P (1297)-Schleu,G (1228) Pinneberg 2012}) 14... b4 {[%emt 0:00:01]} 15. Nb1 {[%emt 0:00:02]} a5 {[%emt 0:00:03]} 16. Nbd2 {[%emt 0:00:06]} Rxc1 {[%emt 0:00:06]} 17. Rxc1 {[%emt 0:00:01]} Qb8 {[%emt 0:00:02]} 18. Bb5 {[%emt 0:00:42]} Rc8 {[%emt 0:00:03]} 19. Qd1 {[%emt 0:00:03]} Bd6 {[%emt 0:00:11]} 20. h3 {[%emt 0:00:06]} Kf8 {[%emt 0:00:10]} 21. Rxc8+ {[%emt 0:00:05]} Qxc8 {[%emt 0:00:02]} 22. Ne5 {[%emt 0:00:04]} Qc7 {[%emt 0:00:12][%cal Rd7e5]} 23. f4 {[%emt 0:00:08]} Nb6 {[%emt 0:00:04][%cal Bd7b6,Bb6c8,Bc8d6][%mdl 32]} 24. Qc1 {[%emt 0:01:03]} Qxc1+ {[%emt 0:00:04]} (24... Ne4 {is interesting.} 25. Bd3 Qxc1+ 26. Bxc1 Nc3) 25. Bxc1 {[%emt 0:00:01]} Bc7 {[%emt 0:00:10]} 26. Kf2 {[%emt 0:00:02]} Nc8 {[%emt 0:00:02]} 27. Bd3 {[%emt 0:00:04]} Nd6 {[%emt 0:00:02]} 28. g3 {[%emt 0:00:05]} Nfe4+ {[%emt 0:00:04]} 29. Nxe4 {[%emt 0:00:02]} dxe4 {[%emt 0:00:02]} 30. Be2 {[%emt 0:00:07]} Bd5 {[%emt 0:00:05]} 31. Nc4 {[%emt 0:00:03]} Nxc4 {[%emt 0:00:09]} 32. Bxc4 {[%emt 0:00:02]} Bxc4 {[%emt 0:00:01]} 33. bxc4 $15 {[%emt 0:00:02][%mdl 4096] Endgame KB-KB} f5 {[%emt 0:00:04]} 34. Bb2 $1 {[%emt 0:00:04]} Kf7 {[%emt 0:00:03]} 35. Ke2 {[%emt 0:00:02] [#]} (35. h4 $15) 35... g5 $1 $17 {[%emt 0:00:04]} 36. Kf2 {[%emt 0:00:02]} Kg6 {[%emt 0:00:03]} 37. Ba1 {[%emt 0:00:03]} h5 {[%emt 0:00:06] And now ...h4 would win.} 38. h4 $2 {[%emt 0:00:01][%mdl 8192] This move loses the game for White.} (38. fxg5 $17 Kxg5 39. Bb2) 38... gxh4 $19 {[%emt 0:00:02] Black is clearly winning.} 39. gxh4 {[%emt 0:00:02]} Bd8 {[%emt 0:00:01]} 40. Kg3 {[%emt 0:00:01]} Kf7 {[%emt 0:00:02]} 41. Bb2 {[%emt 0:00:03]} Ke8 {[%emt 0:00:02]} 42. Bc1 {[%emt 0:00:01]} b3 {[%emt 0:00:01]} 43. Bb2 {[%emt 0:00:03]} Kd7 {[%emt 0:00:02]} 44. Bc3 {[%emt 0:00:02]} Be7 {[%emt 0:00:02]} 45. Bb2 {[%emt 0:00:02]} Kc6 {[%emt 0:00:02]} 46. Kh3 {[%emt 0:00:04]} Bb4 {[%emt 0:00:01]} 47. Kg3 {[%emt 0:00:03]} Be1+ {[%emt 0:00:02] Weighted Error Value: White=0.37/Black=0.04 (flawless)} 0-1

[Event "10th Norway Chess Blitz 2022"]
[Site "Stavanger"]
[Date "2022.05.30"]
[Round "5.2"]
[White "Anand, Viswanathan"]
[Black "Giri, Anish"]
[Result "0-1"]
[ECO "B90"]
[WhiteElo "2751"]
[BlackElo "2761"]
[Annotator "TA"]
[PlyCount "83"]
[EventDate "2022.05.30"]
[EventType "tourn"]
[EventCountry "NOR"]
[SourceTitle "playchess.com"]
[Source "ChessBase"]
[SourceQuality "1"]
[TimeControl "180+2"]

{[%evp 14,83,10,12,7,12,8,10,10,12,15,16,9,16,14,8,11,7,7,8,28,0,16,8,14,14,14,-1,-18,-37,0,-35,0,0,4,0,0,0,18,3,8,0,15,7,14,-16,-14,-28,0,-6,50,49,232,220,271,243,289,277,348,363,354,277,297,233,242,196,211,224,248,238,230,-381]} 1. e4 {[%emt 0:00:01]} c5 {[%emt 0:00:00]} 2. Nf3 {[%emt 0:00:01]} d6 {[%emt 0:00:01]} 3. d4 {[%emt 0:00:01]} cxd4 {[%emt 0:00:00]} 4. Nxd4 {[%emt 0:00:01]} Nf6 {[%emt 0:00:01]} 5. Nc3 {[%emt 0:00:01]} a6 {[%emt 0:00:00]} 6. a4 {[%emt 0:00:01]} e5 {[%emt 0:00:01]} 7. Nf3 {[%emt 0:00:02]} Be7 {[%emt 0:00:01]} 8. Bg5 {[%emt 0:00:04] seems to push 8.Bc4 aside.} Be6 {[%emt 0:00:01] B90: Sicilian Najdorf: Unusual White 6th moves, 6 Be3 Ng4 and 6 Be3 e5.} 9. Bxf6 {[%emt 0:00:02]} Bxf6 {[%emt 0:00:01]} 10. Nd5 {[%emt 0:00:01] Prevents Qb6.} Nd7 {[%emt 0:00:03] The position is equal.} 11. Bc4 {[%emt 0:00:02]} Rc8 {[%emt 0:00:00]} 12. Qe2 {[%emt 0:00:08]} Nb6 {[%emt 0:00:01]} 13. Nxb6 {[%emt 0:00:02]} Qxb6 {[%emt 0:00:02]} 14. Bxe6 {[%emt 0:00:01]} fxe6 {[%emt 0:00:01]} 15. c3 {[%emt 0:00:03] Prevents Qb4.} O-O {[%emt 0:00:04]} 16. O-O {[%emt 0:00:02]} Qc6 {[%emt 0:00:05]} 17. Ne1 {[%emt 0:00:16]} Bd8 {[%emt 0:00:11]} 18. Nd3 {[%emt 0:00:12] [#]} a5 $146 {[%emt 0:00:03]} ({Predecessor:} 18... Bb6 19. Kh1 Rf6 20. f3 Rcf8 21. Rfd1 h6 22. Nb4 Qc7 23. Nc2 Qc6 24. Ne3 Bxe3 25. Qxe3 R6f7 26. Rd3 Rd7 27. h3 Re8 28. b3 b5 29. axb5 axb5 30. Re1 {½-½ (30) Anand,V (2764)-Giri,A (2779) Paris 2019}) 19. Kh1 {[%emt 0:00:02]} b5 {[%emt 0:00:08]} 20. f4 {[%emt 0:00:26]} bxa4 {[%emt 0:01:34]} 21. fxe5 {[%emt 0:00:02] Strongly threatening Rxf8+.} (21. Qg4 {with more complications.} Qc4 22. fxe5 Bc7 23. Rxf8+ Rxf8 24. Nf4) 21... Be7 {[%emt 0:00:06]} 22. Rfd1 {[%emt 0:00:27]} d5 {[%emt 0:00:43]} (22... Rcd8 $5 {[%cal Rd6d5]}) 23. exd5 {[%emt 0:00:08]} exd5 {[%emt 0:00:01][%cal Oa4a3]} 24. Qg4 {[%emt 0:00:06]} a3 {[%emt 0:00:06]} 25. bxa3 {[%emt 0:00:02]} Kh8 {[%emt 0:00:23]} 26. h3 {[%emt 0:00:37]} Qc4 {[%emt 0:00:05]} 27. Qd7 $36 {[%emt 0:00:08][%mdl 2048] White is pushing.} Bh4 {[%emt 0:00:05]} 28. e6 {[%emt 0:00:07] And now e7 would win.} Qe4 {[%emt 0:00:02]} 29. Qa7 {[%emt 0:00:25]} Qxe6 {[%emt 0:00:06]} 30. Qxa5 {[%emt 0:00:03]} Qe4 {[%emt 0:00:02] aiming for ...Rf3.} 31. Qb4 {[%emt 0:00:03]} Rf7 {[%emt 0:00:03]} (31... Bf6 $11 32. Nc5 Qe3) 32. Nc5 $14 {[%emt 0:00:05]} Qxb4 {[%emt 0:00:03] Loses the game.} ({Black should play} 32... Qe7 $14 33. Ne6 (33. Rxd5 Be1 $15) 33... Qf6) 33. cxb4 $18 {[%emt 0:00:02]} (33. axb4 $6 Rf5 34. b5 g6) 33... d4 {[%emt 0:00:01]} 34. Nd3 {[%emt 0:00:06]} ({Don't take} 34. Rxd4 $6 Bf6 35. Rf4 Kg8 $18) 34... Bg3 {[%emt 0:00:01]} 35. a4 {[%emt 0:00:01]} Rc3 {[%emt 0:00:02]} 36. a5 {[%emt 0:00:02]} Rb3 {[%emt 0:00:01]} 37. a6 {[%emt 0:00:02]} Ra7 {[%emt 0:00:01]} 38. Kg1 {[%emt 0:00:06]} h6 {[%emt 0:00:01] White is clearly better.} 39. Kf1 {[%emt 0:00:01]} Kh7 {[%emt 0:00:02]} 40. Ke2 {[%emt 0:00:06]} Re7+ {[%emt 0:00:01] [#]} 41. Kd2 $1 {[%emt 0:00:09]} Re3 {[%emt 0:00:00] [#]} 42. a7 $4 {[%emt 0:00:07][%mdl 8192] Weighted Error Value: White=0.12 (very precise) /Black=0.27 (precise)} ({Not} 42. Nc5 Rb2+ 43. Kc1 Ree2 $15) (42. Kc2 $1 $18 {[%cal Rc2b3] is the narrow road to win.} Rc3+ 43. Kb1) 0-1